bitfinex/quotes_ETHUSD_20220123
["timestamp","ask_amount","ask_price","bid_price","bid_amount"]
[1642905644309,0.00113685,2430.3,2430.1,3.50160611]
[1642905645208,0.00113685,2430.3,2429.7,3.50160611]
[1642905645406,0.00113685,2430.3,2429.5,1.1672]
[1642905645605,0.00113685,2430.3,2429.8,0.00170527]
[1642905646007,0.00113685,2430.3,2429.7,0.00227369]
[1642905646407,0.00113685,2430.3,2429.8,1.43755283]
[1642905646811,0.00113685,2430.3,2429.9,0.00113685]
[1642905647206,0.00113685,2430.3,2429.6,3.50486366]
[1642905647410,0.00113685,2430.3,2429.7,0.00227369]
[1642905647608,0.00113685,2430.3,2429.7,0.00284212]
[1642905648063,0.00113685,2430.3,2429.7,3.50486366]
[1642905648264,0.00113685,2430.3,2429.8,3.50202154]
[1642905648461,0.00113685,2430.3,2429.9,3.50202154]
[1642905648762,0.00113685,2430.3,2430.0,3.50202154]
[1642905648962,0.00113685,2430.3,2430.2,1.12270323]
[1642905649367,0.00113685,2430.3,2430.2,4.62441215]
[1642905649563,0.00113685,2430.3,2430.2,1.12270323]
[1642905649965,0.00113685,2430.3,2430.2,4.62441215]
[1642905650364,0.00113685,2430.3,2430.2,1.12270323]
[1642905651265,0.00113685,2430.3,2430.2,4.62434021]
[1642905652708,0.00113685,2430.3,2430.2,3.50163698]
[1642905653106,0.00113685,2430.3,2429.9,5.06556694]
[1642905653309,0.00113685,2430.3,2430.0,3.50163698]
[1642905653707,0.00113685,2430.3,2430.1,4.83170801]
[1642905654306,0.00113685,2430.3,2429.8,6.40442996]
[1642905654307,0.00113685,2430.3,2430.2,3.50163698]
[1642905654708,0.00113685,2430.3,2429.9,3.50163698]
[1642905654907,0.00113685,2430.3,2430.0,3.50163698]
[1642905655109,0.00113685,2430.3,2430.1,3.50163698]
[1642905655372,0.00113685,2430.3,2430.2,3.50163698]
[1642905656872,0.00113685,2430.3,2429.9,3.50277383]
[1642905658978,0.1645,2430.2,2429.9,0.00113685]
[1642905660409,0.00113685,2430.3,2429.9,0.00113685]
[1642905661710,0.00113685,2430.3,2429.9,3.502975]
[1642905661909,0.00113685,2430.3,2429.9,5.49648915]
[1642905662115,0.00113685,2430.3,2430.0,3.50171091]
[1642905662407,0.00113685,2430.3,2429.9,1.994651]
[1642905662607,0.00113685,2430.3,2430.0,3.5017846]
[1642905662858,0.00113685,2430.3,2429.9,1.994651]
[1642905663060,0.00113685,2430.3,2429.9,0.00113685]
[1642905663960,0.0002154,2429.9,2429.8,1.1677]
[1642905669312,0.0002154,2429.9,2429.3,0.9916021]
[1642905669514,0.1645,2429.8,2429.3,0.9916021]
[1642905669713,0.6565,2429.8,2429.3,0.00750241]
[1642905669917,1.7205,2429.8,2429.3,0.00750241]
[1642905670115,0.00113685,2429.7,2429.3,0.00750241]
[1642905670364,0.49313685,2429.7,2429.3,0.00750241]
[1642905671259,1.5,2429.3,2428.6,8.1266]
[1642905671461,1.992,2429.3,2428.7,3.50002676]
[1642905671661,2.992,2429.3,2428.7,3.50457415]
[1642905673064,1.16306154,2429.2,2428.7,0.00454739]
[1642905673265,1.16306154,2429.2,2428.6,1.5]
[1642905673266,0.1645,2429.1,2428.6,1.5]
[1642905673462,0.1645,2429.1,2428.7,0.00454739]
[1642905673463,0.6587737,2429.1,2428.7,0.00454739]
[1642905673665,0.00170527,2429.0,2428.6,1.5]
[1642905673861,0.49370527,2429.0,2428.6,1.5]
[1642905674112,0.00568424,2428.9,2428.6,1.5]
[1642905674312,0.00568424,2428.9,2428.6,1.45]
[1642905674512,0.00511582,2428.8,2428.6,1.45]
[1642905674810,0.00454739,2428.7,2428.6,1.45]
[1642905675814,0.00454739,2428.7,2428.1,3.0985]
[1642905676017,0.49654739,2428.7,2428.2,3.50039086]
[1642905676218,0.00397897,2428.6,2428.1,0.02]
[1642905676516,0.49541055,2428.5,2428.1,0.02]
[1642905676714,0.1647,2428.4,2428.1,1.5]
[1642905676915,0.492,2428.3,2428.1,1.38399493]
[1642905677222,0.492,2428.3,2428.1,0.78999384]
[1642905677223,0.00170528,2428.2,2428.1,0.78999384]
[1642905677416,0.49370528,2428.2,2428.1,0.78999384]
[1642905678973,1.9,2428.1,2427.5,0.02]
[1642905679172,3.5567,2428.1,2427.5,0.02]
[1642905679372,3.55783685,2428.1,2427.5,0.02]
[1642905679570,1.65783685,2428.1,2427.6,0.00170527]
[1642905679971,0.65783685,2428.1,2427.6,1.11203443]
[1642905680172,0.49313685,2428.1,2427.6,1.11203443]
[1642905680377,0.49313685,2428.1,2427.7,0.00113684]
[1642905682015,0.79313685,2428.1,2427.7,0.00113684]
[1642905682518,1.09313685,2428.1,2427.7,0.00113684]
[1642905684016,2.12438685,2428.1,2427.7,0.00113684]
[1642905684221,2.8,2427.8,2427.3,0.25154976]
[1642905684417,3.26086771,2427.7,2427.3,0.25154976]
[1642905684619,0.25325708,2428.0,2427.4,0.00170527]
[1642905684620,1.792,2427.6,2427.4,0.00170527]
[1642905684817,0.492,2427.5,2427.4,0.00170527]
[1642905685019,0.792,2427.5,2427.4,0.00170527]
[1642905685218,1.792,2427.5,2427.4,0.00170527]
[1642905685466,0.792,2427.5,2427.4,0.00170527]
[1642905685664,1.792,2427.5,2427.4,0.00170527]
[1642905685961,0.792,2427.5,2427.4,0.00170527]
[1642905686162,1.792,2427.5,2427.4,0.22007429]
[1642905686465,0.492,2427.5,2427.4,0.22007429]
[1642905686663,0.792,2427.5,2427.3,0.25154976]
[1642905686864,0.1647,2427.4,2427.3,0.25154976]
[1642905687062,0.6567,2427.4,2427.3,0.25154976]
[1642905687461,0.9567,2427.4,2427.3,0.25154976]
[1642905687863,1.2567,2427.4,2427.3,0.25154976]
[1642905688065,1.092,2427.4,2427.3,0.25154976]
[1642905690319,2.792,2427.4,2427.2,0.02]
[1642905690720,1.0,2427.3,2427.2,0.02]
[1642905690915,1.492,2427.3,2427.2,0.02]
[1642905691116,0.492,2427.3,2427.2,0.02113685]
[1642905691916,2.192,2427.3,2427.2,0.02113685]
[1642905692116,3.192,2427.3,2427.2,0.02113685]
[1642905692318,1.7,2427.2,2427.1,0.02]
[1642905692520,2.492,2427.2,2427.1,0.02]
[1642905692717,3.492,2427.2,2426.9,0.02]
[1642905692975,0.3,2427.1,2426.9,0.02]
[1642905693175,1.33164,2427.2,2427.1,0.59999999]
[1642905694175,1.03164,2427.2,2427.1,0.59999999]
[1642905694374,1.19629,2427.6,2427.1,0.59999999]
[1642905694375,0.492,2427.3,2427.1,0.59999999]
[1642905694576,1.03146,2427.6,2427.1,0.59999999]
[1642905694577,0.492,2427.6,2427.1,0.59999999]
[1642905694876,0.00170527,2427.5,2427.1,0.59999999]
[1642905695274,0.00113685,2427.4,2427.1,0.59999999]
[1642905695680,1.00284212,2427.7,2427.1,0.59999999]
[1642905695879,1.30284212,2427.7,2427.1,0.59999999]
[1642905696076,0.00227369,2427.6,2427.1,0.59999999]
[1642905696477,0.00170527,2427.5,2427.1,0.59999999]
[1642905696925,0.00113685,2427.4,2427.1,0.59999999]
[1642905697322,0.00227369,2427.6,2427.1,0.59999999]
[1642905697721,0.00170527,2427.5,2427.1,0.59999999]
[1642905698121,0.00113685,2427.4,2427.1,0.59999999]
[1642905698525,0.00227369,2427.6,2427.1,0.59999999]
[1642905698923,0.00170527,2427.5,2427.1,0.59999999]
[1642905699324,0.00113685,2427.4,2427.1,0.59999999]
[1642905699724,0.00227369,2427.6,2427.1,0.59999999]
[1642905700124,0.00170527,2427.5,2427.1,0.59999999]
[1642905700570,0.00113685,2427.4,2427.1,0.59999999]
[1642905700968,0.00227369,2427.6,2427.1,0.59999999]
[1642905701369,2.092,2427.7,2427.1,0.59999999]
[1642905701370,0.00170527,2427.5,2427.1,0.59999999]
[1642905701769,0.08798866,2427.4,2427.1,0.59999999]
[1642905701969,0.1647,2427.3,2427.1,0.59999999]
[1642905702369,0.16697369,2427.6,2427.1,0.59999999]
[1642905702570,0.492,2427.5,2427.1,0.59999999]
[1642905702769,0.1647,2427.4,2427.1,0.59999999]
[1642905702971,0.65783685,2427.4,2427.1,0.59999999]
[1642905703370,0.95783685,2427.4,2427.1,0.59999999]
[1642905703570,1.25783685,2427.4,2427.1,0.59999999]
[1642905703774,1.09313685,2427.4,2427.1,0.59999999]
[1642905708468,1.8,2427.3,2427.0,0.00113685]
[1642905708667,0.492,2427.2,2427.0,0.00113685]
[1642905709071,0.792,2427.2,2427.0,0.00113685]
[1642905710069,1.82364,2427.2,2427.0,0.00113685]
[1642905710269,1.7,2427.1,2426.9,0.02]
[1642905710472,0.492,2427.1,2426.9,0.02]
[1642905712515,0.492,2427.1,2426.5,0.32242267]
[1642905712814,0.492,2427.1,2426.6,0.00227369]
[1642905713218,2.36331,2427.2,2427.1,0.98399999]
[1642905713516,2.85644685,2427.2,2426.6,0.00227369]
[1642905713916,2.85644685,2427.2,2426.6,3.5088009]
[1642905714119,2.85644685,2427.2,2426.6,0.00227369]
[1642905714319,2.85644685,2427.2,2426.7,0.00170527]
[1642905715570,0.01223488,2426.8,2426.1,0.02]
[1642905715773,2.26104,2426.5,2425.6,0.02]
[1642905715969,1.229,2426.2,2425.0,2.08523994]
[1642905716167,1.229,2426.2,2424.9,7.5474]
[1642905716168,1.229,2426.0,2425.7,0.00284212]
[1642905716371,1.229,2425.9,2425.7,0.00284212]
[1642905716668,1.529,2425.9,2425.8,0.04602273]
[1642905717069,1.529,2425.9,2425.8,0.0022737]
[1642905717070,1.229,2425.9,2425.8,0.0022737]
[1642905717270,3.23291615,2426.4,2425.9,2.05]
[1642905717469,0.492,2426.4,2425.9,2.05]
[1642905717668,0.492,2426.4,2426.0,0.00113685]
[1642905718067,0.492,2426.4,2426.1,1.39215459]
[1642905718673,0.492,2426.4,2426.0,0.00113685]
[1642905719141,0.492,2426.4,2425.9,0.00170527]
[1642905719739,0.492,2426.4,2425.9,1.21952992]
[1642905720141,0.492,2426.4,2426.0,0.00113685]
[1642905720341,0.792,2426.4,2426.0,0.00113685]
[1642905720642,1.092,2426.4,2426.0,0.00113685]
[1642905721044,1.092,2426.4,2425.9,0.00170527]
[1642905722741,1.092,2426.4,2425.6,0.00341054]
[1642905726472,1.19682,2426.3,2425.6,0.00341054]
[1642905726715,0.492,2426.2,2425.6,0.00341054]
[1642905726915,0.1648,2426.1,2425.6,0.00341054]
[1642905727115,0.6568,2426.1,2425.6,0.00341054]
[1642905727514,0.9568,2426.1,2425.6,0.00341054]
[1642905727714,0.9568,2426.1,2425.3,0.00511582]
[1642905731568,1.0322,2425.9,2425.3,0.00511582]
[1642905731766,0.492,2425.8,2425.3,0.00511582]
[1642905731967,0.492,2425.8,2425.1,0.00625266]
[1642905733369,0.492,2425.8,2425.0,1.05025266]
[1642905733570,0.00341054,2425.7,2425.0,1.05025266]
[1642905733769,0.492,2425.6,2425.0,1.05025266]
[1642905733968,0.49484212,2425.6,2425.0,1.05025266]
[1642905734216,0.00227369,2425.5,2425.0,1.05025266]
[1642905734415,0.49427369,2425.5,2425.0,1.05025266]
[1642905734618,0.00170527,2425.4,2424.9,7.5474]
[1642905734816,0.00170527,2425.4,2424.7,3.1439]
[1642905735022,0.492,2425.5,2424.8,0.02]
[1642905735023,0.49313684,2425.3,2424.8,0.02]
[1642905735217,0.49313684,2425.3,2424.9,0.00113685]
[1642905735218,0.492,2425.2,2424.9,0.00113685]
[1642905736419,0.792,2425.2,2424.9,0.00113685]
[1642905736620,1.092,2425.2,2424.9,0.00113685]
[1642905737022,1.092,2425.2,2424.8,0.02]
[1642905737023,2.8,2425.1,2424.8,0.02]
[1642905737220,2.8,2425.1,2424.7,1.5]
[1642905737221,1.39813669,2424.8,2424.7,1.5]
[1642905737419,1.89013669,2424.8,2424.7,1.5]
[1642905737621,1.75,2424.7,2424.4,0.02]
[1642905737881,0.492,2424.6,2424.4,0.02]
[1642905738269,0.492,2424.6,2423.7,1.146]
[1642905738470,2.15271181,2424.5,2423.7,1.146]
[1642905738767,1.04385181,2424.4,2423.8,0.00397897]
[1642905739168,1.7,2424.3,2423.7,1.09997897]
[1642905739366,0.492,2424.2,2423.7,1.09997897]
[1642905739566,0.4942737,2424.2,2423.6,0.2100775]
[1642905739766,0.00170527,2424.1,2423.6,0.2100775]
[1642905739970,0.165,2424.5,2424.1,0.00341054]
[1642905740173,0.492,2424.5,2424.1,0.00341054]
[1642905740368,0.00113685,2424.3,2424.1,0.00341054]
[1642905741370,0.00113685,2424.3,2424.1,1.9625175]
[1642905741823,0.00113685,2424.3,2424.1,0.00341054]
[1642905743920,0.00113685,2424.3,2424.2,1.37489903]
[1642905744521,0.00113685,2424.3,2424.1,0.00341054]
[1642905746176,0.00113685,2424.3,2424.2,1.37783451]
[1642905747369,0.00113685,2424.3,2424.2,3.27783451]
[1642905748771,0.00113685,2424.3,2424.2,1.37783451]
[1642905750219,0.00113685,2424.3,2424.1,0.00341054]
[1642905750425,0.49313685,2424.3,2424.1,0.00341054]
[1642905750631,0.165,2424.2,2424.1,0.00341054]
[1642905750823,0.657,2424.2,2424.1,0.00341054]
[1642905752521,0.657,2424.2,2423.7,0.00227369]
[1642905752522,4.0339722,2424.1,2423.7,0.00227369]
[1642905752879,0.657,2424.0,2423.7,0.00227369]
[1642905753374,0.957,2424.0,2423.7,0.00227369]
[1642905753570,1.257,2424.0,2423.7,0.00227369]
[1642905753769,0.657,2424.0,2423.7,0.00227369]
[1642905753975,0.492,2424.0,2423.7,0.00227369]
[1642905754273,0.00113685,2424.3,2423.7,0.00227369]
[1642905754869,0.00113685,2424.3,2423.8,1.23749081]
[1642905755273,0.00113685,2424.3,2423.9,0.00113684]
[1642905756926,0.00113685,2424.3,2423.8,0.00170527]
[1642905757722,0.492,2424.2,2423.8,0.00170527]
[1642905757921,0.657,2424.2,2423.8,0.00170527]
[1642905758526,0.957,2424.2,2423.8,0.00170527]
[1642905758925,2.28984,2424.2,2423.8,0.00170527]
[1642905759125,2.12484,2424.2,2423.8,0.00170527]
[1642905759325,3.12484,2424.2,2423.8,0.00170527]
[1642905759525,1.0,2424.1,2423.8,0.00170527]
[1642905759724,0.492,2424.1,2423.8,0.00170527]
[1642905760130,1.16613685,2424.3,2424.2,1.61967026]
[1642905760380,1.00113685,2424.3,2424.2,1.61967026]
[1642905760570,0.00113685,2424.3,2424.2,1.61967026]
[1642905762873,0.00113685,2424.3,2423.8,0.00170527]
[1642905763077,0.492,2424.2,2423.8,0.00170527]
[1642905763475,1.91170181,2424.2,2423.8,0.00170527]
[1642905763673,3.21170181,2424.2,2423.8,0.00170527]
[1642905764126,4.34163896,2424.2,2423.8,0.00170527]
[1642905764324,0.165,2424.1,2423.8,0.00170527]
[1642905764524,0.792,2424.0,2423.8,0.00170527]
[1642905764924,1.092,2424.0,2423.8,0.00170527]
[1642905766326,0.492,2424.0,2423.8,0.00170527]
[1642905768970,0.792,2424.0,2423.8,0.00170527]
[1642905770377,0.792,2424.0,2422.4,1.56190499]
[1642905770378,2.8,2423.7,2422.4,1.56190499]
[1642905770578,1.03323,2423.5,2421.5,7.22714676]
[1642905770775,1.03323,2423.5,2421.4,5.19283232]
[1642905770776,0.86285253,2423.0,2421.4,5.19283232]
[1642905770974,0.86285253,2423.0,2421.4,3.29381019]
[1642905770975,6.155,2421.5,2421.4,3.29381019]
[1642905771183,8.12851958,2421.5,2421.4,3.41085111]
[1642905771372,8.12851958,2421.5,2420.8,0.007]
[1642905771373,8.42851958,2421.5,2420.8,0.007]
[1642905771684,8.42851958,2421.5,2420.1,1.56264272]
[1642905771685,2.8,2421.3,2420.1,1.56264272]
[1642905771843,2.8,2421.3,2420.0,2.08352363]
[1642905771844,8.00039103,2421.2,2420.2,3.41459439]
[1642905772037,6.155,2420.8,2419.9,0.2100775]
[1642905772230,0.69827,2420.7,2419.9,0.17652124]
[1642905772438,0.69827,2420.7,2420.0,0.00113685]
[1642905772439,0.49484212,2420.7,2420.0,0.00113685]
[1642905772636,0.00227369,2420.6,2420.0,3.5164805]
[1642905772832,0.00227369,2420.6,2420.1,3.51534365]
[1642905773031,0.4320122,2420.8,2420.4,0.01264055]
[1642905773231,1.52607,2421.5,2420.5,3.00634]
[1642905773432,3.685e-05,2420.7,2420.6,5.56759697]
[1642905773633,3.10213,2422.3,2421.0,0.01221873]
[1642905773830,0.00397896,2421.4,2421.0,0.01221873]
[1642905774037,0.00397896,2421.4,2421.1,0.20634]
[1642905774038,7.896e-05,2421.4,2421.1,0.20634]
[1642905774339,0.86285253,2423.0,2421.3,3.01898797]
[1642905774534,0.86285253,2423.0,2421.9,0.01274891]
[1642905774834,0.00690004,2422.6,2422.5,1.3677303]
[1642905775136,0.00690004,2422.6,2422.5,1.67764543]
[1642905775595,0.00690004,2422.6,2421.9,0.06908891]
[1642905775799,0.00690004,2422.6,2421.6,7.7539]
[1642905775995,0.86285253,2423.0,2421.6,7.4539]
[1642905775996,0.00633162,2422.5,2421.6,7.4539]
[1642905776396,0.00576319,2422.4,2421.6,7.4539]
[1642905776602,0.00576319,2422.4,2421.1,2.47785643]
[1642905776603,0.01272561,2422.2,2421.4,1.22612821]
[1642905776800,0.1651,2422.1,2421.1,2.4089]
[1642905777003,0.16915792,2422.1,2421.1,2.4089]
[1642905777198,0.7017595,2422.0,2421.1,2.4089]
[1642905777397,0.7017595,2422.0,2420.9,7.6777]
[1642905777398,0.1651,2421.9,2420.9,7.6777]
[1642905777601,0.20627,2421.8,2420.9,3.8292]
[1642905777798,0.1651,2421.7,2421.1,0.05991513]
[1642905777999,0.16688423,2421.7,2421.1,0.05991513]
[1642905778198,0.00121581,2421.6,2421.2,0.00105789]
[1642905778400,0.1651,2421.5,2421.2,0.00105789]
[1642905778802,2.20627,2421.3,2421.2,0.00105789]
[1642905779004,2.20627,2421.3,2420.8,0.00333158]
[1642905779005,0.1652,2421.2,2420.8,0.00333158]
[1642905779224,0.20627,2421.1,2420.6,0.00446843]
[1642905779425,0.1652,2421.0,2420.3,0.0061737]
[1642905779630,0.1652,2421.0,2420.4,0.05991513]
[1642905780024,0.1652,2421.0,2420.5,0.00503685]
[1642905780526,0.1652,2421.0,2420.6,1.45965696]
[1642905780725,0.9347,2421.5,2420.6,1.45965696]
[1642905780726,0.00227369,2420.9,2420.6,1.45965696]
[1642905780927,0.9347,2421.5,2421.0,0.49332631]
[1642905780928,1.0999,2421.5,2421.0,0.49332631]
[1642905781125,2.49907912,2421.5,2421.0,0.49332631]
[1642905781326,0.20627,2421.4,2421.0,0.49332631]
[1642905781524,0.1652,2421.3,2421.0,0.49332631]
[1642905781727,0.0022737,2421.3,2421.0,0.49332631]
[1642905782330,0.1652,2421.2,2421.0,0.49332631]
[1642905782727,0.9347,2421.5,2421.0,0.49332631]
[1642905782728,0.00113685,2421.1,2421.0,0.49332631]
[1642905783015,0.00113685,2421.1,2421.0,5.58327144]
[1642905783194,0.00113685,2421.1,2421.0,3.29332631]
[1642905783393,0.00113685,2421.1,2421.0,0.49332631]
[1642905783594,0.00113685,2421.1,2421.0,0.54966631]
[1642905783793,0.00113685,2421.1,2421.0,2.08956879]
[1642905783994,0.00113685,2421.1,2421.0,6.20322526]
[1642905784196,0.9347,2421.5,2421.0,6.61704032]
[1642905784399,0.1652,2422.7,2421.2,0.03669019]
[1642905784697,0.20627,2423.3,2421.3,0.05634]
[1642905784698,5.27e-06,2421.4,2421.3,0.05634]
[1642905784905,0.00682635,2422.6,2421.5,0.0008]
[1642905785095,1.47747307,2423.1,2421.5,0.0008]
[1642905785298,0.00625793,2422.5,2421.7,0.00632613]
[1642905785496,0.01283023,2422.9,2421.7,0.00632613]
[1642905785698,0.01283023,2422.9,2421.5,0.07327113]
[1642905785699,0.0056895,2422.4,2421.5,0.07327113]
[1642905785902,0.20627,2422.8,2421.2,2.12133616]
[1642905785903,0.01202485,2422.3,2421.2,2.12133616]
[1642905786099,0.01202485,2422.3,2421.1,6.32673616]
[1642905786100,0.1651,2422.2,2421.1,6.32673616]
[1642905786298,0.16965266,2422.2,2421.1,6.32673616]
[1642905786498,0.00398423,2422.1,2421.2,0.00113158]
[1642905786729,0.00398423,2422.1,2421.2,1.12372649]
[1642905786922,1.14983276,2421.9,2421.2,1.12372649]
[1642905787123,0.00341581,2422.0,2421.2,1.12372649]
[1642905787323,0.00227896,2421.8,2421.2,0.00113158]
[1642905787528,0.20627,2421.9,2421.2,0.00113158]
[1642905787529,0.1651,2421.7,2421.2,0.00113158]
[1642905787723,0.1651,2421.7,2421.1,0.0017]
[1642905787724,0.20798054,2421.7,2421.1,0.0017]
[1642905787924,0.16624212,2421.6,2421.1,0.0017]
[1642905788124,1.43007155,2421.6,2421.1,0.0017]
[1642905788323,0.16624212,2421.6,2421.1,0.0017]
[1642905788723,0.16624212,2421.6,2421.2,1.50498392]
[1642905788724,0.00114212,2421.6,2421.2,1.50498392]
[1642905789323,0.00114212,2421.6,2421.1,0.0017]
[1642905789924,0.16624212,2421.6,2421.1,0.0017]
[1642905790378,0.00114212,2421.6,2421.5,1.20401643]
[1642905790981,0.00114212,2421.6,2421.1,1.2307]
[1642905791380,0.1651,2421.5,2421.2,0.00113158]
[1642905791979,0.1651,2421.5,2421.1,0.0017]
[1642905794425,1.23546357,2421.3,2421.1,0.0017]
[1642905794630,1.7152,2421.2,2421.1,0.0017]
[1642905795626,4.31284734,2421.2,2421.1,0.0017]
[1642905795826,2.6,2421.1,2421.0,0.48679461]
[1642905796025,4.2572,2421.1,2421.0,0.48679461]
[1642905796626,4.46347,2421.1,2421.0,0.48679461]
[1642905797128,4.46347,2421.1,2421.0,0.38679461]
[1642905797327,2.8,2421.0,2419.9,5.99017419]
[1642905797528,1.86347,2420.9,2419.9,5.99017419]
[1642905797732,1.86347,2420.9,2420.0,0.00625266]
[1642905797986,1.86347,2420.9,2420.3,1.51686932]
[1642905798178,0.86347,2420.9,2420.3,1.51686932]
[1642905798377,0.86347,2420.9,2420.4,0.00397896]
[1642905799581,0.69827,2420.9,2420.4,0.00397896]
[1642905799782,0.1652,2420.8,2420.7,1.18601348]
[1642905799983,0.01253476,2421.2,2420.7,1.18601348]
[1642905799984,0.1652,2421.2,2420.7,1.18601348]
[1642905800185,0.13819997,2421.3,2420.7,1.18828717]
[1642905800381,0.20627,2421.2,2420.8,0.00170527]
[1642905800788,0.63019997,2421.3,2420.1,0.00568424]
[1642905801382,0.492,2421.3,2420.2,1.13372805]
[1642905801641,0.20741212,2421.6,2421.3,1.47599999]
[1642905801642,0.00114212,2421.6,2421.3,1.47599999]
[1642905802127,0.00227369,2421.5,2421.3,1.47599999]
[1642905802526,0.00568423,2422.1,2421.3,1.47599999]
[1642905802931,0.17021581,2422.0,2421.3,1.47599999]
[1642905803132,0.00511581,2422.0,2421.3,1.47599999]
[1642905803329,0.00454739,2421.9,2421.3,1.47599999]
[1642905803732,0.00397896,2421.8,2421.4,3.63769623]
[1642905804133,0.00341054,2421.7,2421.4,1.23920406]
[1642905804529,0.00284212,2421.6,2421.4,1.23920406]
[1642905804929,0.00227369,2421.5,2421.4,1.23920406]
[1642905805574,0.00227369,2421.5,2421.4,3.37409917]
[1642905805973,0.00227369,2421.5,2421.4,1.23920406]
[1642905806774,0.00227369,2421.5,2421.4,3.03920406]
[1642905807074,0.00227369,2421.5,2421.4,5.0630226]
[1642905807474,0.00227369,2421.5,2421.4,3.2130226]
[1642905807874,0.00227369,2421.5,2421.4,1.18920406]
[1642905808279,0.00227369,2421.5,2421.4,3.22624452]
[1642905808880,7.369e-05,2421.5,2421.4,27.25624452]
[1642905809143,7.369e-05,2421.5,2421.4,31.86184529]
[1642905809335,0.1651,2422.8,2421.5,2.8]
[1642905809535,0.1651,2423.0,2422.7,1.49000545]
[1642905810838,1.74388846,2423.0,2421.8,5.13693493]
[1642905811035,1.74388846,2423.0,2421.8,5.1245]
[1642905811036,2.26270712,2423.0,2421.8,5.1245]
[1642905811236,0.3,2422.9,2421.8,2.11336398]
[1642905811439,0.86337,2422.8,2421.5,3.33566398]
[1642905811635,0.01206122,2422.5,2421.5,1.2223]
[1642905811835,0.6571,2422.4,2421.6,1.47765661]
[1642905812034,0.20627,2422.3,2421.6,1.47765661]
[1642905812235,0.1651,2422.2,2422.0,1.50292225]
[1642905812435,0.00397897,2422.2,2422.0,1.50292225]
[1642905812636,0.00341054,2422.1,2422.0,1.50292225]
[1642905813277,0.00341054,2422.1,2422.0,3.65150896]
[1642905813678,0.00341054,2422.1,2422.0,1.50292225]
[1642905813873,3.23457454,2422.5,2422.4,1.28936879]
[1642905814075,7.48,2423.0,2422.8,1.121755]
[1642905814876,0.165,2422.9,2422.1,3.8471]
[1642905815077,0.165,2422.9,2421.9,1.1508]
[1642905815078,0.37127,2422.9,2421.9,1.1508]
[1642905815277,0.00397897,2422.8,2421.9,1.1508]
[1642905815475,0.1651,2422.7,2421.9,1.1508]
[1642905815678,0.16851054,2422.7,2421.9,1.1508]
[1642905815877,0.00284212,2422.6,2421.9,1.1508]
[1642905816082,0.00284212,2422.6,2422.0,2.13444488]
[1642905816083,0.1651,2422.5,2422.0,2.13444488]
[1642905816275,0.1673737,2422.5,2422.0,2.13444488]
[1642905816476,0.00170527,2422.4,2421.9,1.1508]
[1642905816727,0.1651,2422.3,2421.6,3.9089]
[1642905816928,0.16623685,2422.3,2421.5,2.13524488]
[1642905817132,0.16623685,2422.3,2422.2,1.44899941]
[1642905817328,0.00113685,2422.3,2422.2,1.44899941]
[1642905818331,0.00113685,2422.3,2421.7,1.2132]
[1642905818737,0.00113685,2422.3,2421.8,0.00170527]
[1642905819329,0.20627,2422.2,2421.8,0.00170527]
[1642905819530,0.1651,2422.1,2421.8,0.00170527]
[1642905819732,0.1651,2422.1,2421.6,0.00284211]
[1642905820376,0.1651,2422.2,2421.6,0.00284211]
[1642905821576,0.1651,2422.2,2421.6,1.23060375]
[1642905821977,0.1651,2422.2,2421.7,0.00227369]
[1642905822177,0.1651,2422.2,2421.6,1.22776164]
[1642905822376,0.1651,2422.2,2421.5,0.0008]
[1642905822576,1.12632942,2422.1,2421.5,0.0008]
[1642905822979,0.00170527,2422.0,2421.5,0.0008]
[1642905823176,0.1651,2421.9,2421.5,0.0008]
[1642905823380,0.16623685,2421.9,2421.5,0.0008]
[1642905826326,0.37250685,2421.9,2421.5,0.0008]
[1642905826732,0.45935866,2421.9,2421.5,0.0008]
[1642905827627,1.46769329,2421.8,2421.5,0.0008]
[1642905827881,2.05627,2421.6,2421.5,0.0008]
[1642905828081,2.22137,2421.6,2421.5,0.0008]
[1642905828279,2.22137,2421.6,2421.5,0.00193685]
[1642905828479,0.37137,2421.6,2421.5,0.00193685]
[1642905829278,0.20627,2421.6,2421.5,0.00193685]
[1642905829679,0.6571,2421.7,2421.5,0.00193685]
[1642905829883,0.492,2421.7,2421.5,0.00193685]
[1642905830579,0.20627,2421.6,2421.5,0.00193685]
[1642905831929,0.16623685,2421.9,2421.5,0.00193685]
[1642905831930,0.00113685,2421.9,2421.5,0.00193685]
[1642905832139,0.00113685,2421.9,2421.5,0.22046421]
[1642905832326,0.00113685,2421.9,2421.5,24.49496421]
[1642905832526,0.00113685,2421.9,2421.5,33.55916421]
[1642905832726,0.00113685,2421.9,2421.5,9.52916421]
[1642905832929,0.00113685,2421.9,2421.5,9.02287421]
[1642905833129,0.00113685,2421.9,2421.5,4.86043685]
[1642905833328,0.00113685,2421.9,2421.5,1.17183685]
[1642905833728,0.00113685,2421.9,2421.5,0.00193685]
[1642905835380,0.20752685,2421.9,2421.5,0.00193685]
[1642905835683,3.04919391,2421.6,2421.5,0.00193685]
[1642905835882,4.21268391,2421.6,2421.5,0.00193685]
[1642905836082,3.11268391,2421.6,2421.3,1.47599999]
[1642905836280,0.20639,2421.4,2421.3,1.47599999]
[1642905836681,0.20639,2421.4,2421.3,1.47713683]
[1642905838482,0.1651,2421.5,2421.3,1.47713683]
[1642905838681,0.69839,2421.6,2421.3,1.47713683]
[1642905838682,0.20639,2421.6,2421.3,1.47713683]
[1642905839535,0.6571,2421.8,2421.4,1.38325664]
[1642905839730,0.00113685,2421.9,2421.4,1.38325664]
[1642905839928,0.00113685,2421.7,2421.4,1.38325664]
[1642905840129,0.00170527,2421.8,2421.4,1.38325664]
[1642905840331,0.0022737,2421.9,2421.4,1.38325664]
[1642905840534,0.00113685,2421.7,2421.4,3.44659998]
[1642905840732,7.6304448,2422.3,2421.4,3.44659998]
[1642905840733,0.00170527,2421.8,2421.4,3.45820398]
[1642905840934,7.78329997,2422.3,2421.8,1.10736849]
[1642905840935,0.0022737,2421.9,2421.8,1.10736849]
[1642905841134,7.61819997,2422.3,2421.8,1.10736849]
[1642905841633,0.00397897,2422.2,2421.8,1.10736849]
[1642905841935,0.00341054,2422.1,2421.8,1.10736849]
[1642905842333,0.00284212,2422.0,2421.8,1.10736849]
[1642905842532,0.00284212,2422.0,2421.4,4.9514]
[1642905842733,0.0022737,2421.9,2421.4,1.1253]